bitfinex-derivatives/quotes_ETHF0:USTF0_20250905
["timestamp","ask_amount","ask_price","bid_price","bid_amount"]
[1757105019201,4.01168273,4341.7,4341.6,1.3797]
[1757105019792,4.40638273,4341.7,4341.6,1.3797]
[1757105020199,4.80108273,4341.7,4341.6,1.3797]
[1757105021805,5.19888273,4341.7,4341.6,1.3797]
[1757105022502,4.80108273,4341.7,4341.6,1.3797]
[1757105022701,4.56708273,4341.7,4341.6,1.3797]
[1757105022905,4.80108273,4341.7,4341.6,1.3797]
[1757105023302,5.19888273,4341.7,4341.6,0.6142]
[1757105023999,5.19888273,4341.7,4341.6,0.9873]
[1757105025605,5.19888273,4341.7,4341.6,0.6142]
[1757105026400,5.19888273,4341.7,4341.6,0.9873]
[1757105033112,5.19888273,4341.7,4341.6,0.6142]
[1757105033313,0.7634,4341.5,4341.4,0.5417]
[1757105033518,1.94858273,4341.5,4341.4,0.5417]
[1757105037619,1.94858273,4341.5,4341.4,0.9117]
[1757105038719,1.94858273,4341.5,4341.4,0.5417]
[1757105039420,1.94858273,4341.5,4341.4,0.54069852]
[1757105040511,0.56988273,4341.5,4341.4,0.7498]
[1757105040714,3.2078,4341.7,4341.6,0.7498]
[1757105041021,4.17558334,4341.7,4341.6,0.7498]
[1757105041222,4.54178334,4341.7,4341.6,0.7498]
[1757105041614,4.54178334,4341.7,4341.6,1.2915]
[1757105041918,4.17558334,4341.7,4341.6,1.2915]
[1757105042119,3.77838334,4341.7,4341.6,1.2915]
[1757105042516,3.77838334,4341.7,4341.6,0.5417]
[1757105042517,4.92408334,4341.7,4341.6,0.5417]
[1757105044123,4.92408334,4341.7,4341.6,0.9117]
[1757105045026,4.40958334,4341.7,4341.6,1.2915]
[1757105046326,4.40958334,4341.7,4341.5,0.5417]
[1757105046327,1.1457,4341.6,4341.5,0.5417]
[1757105046532,1.71628334,4341.6,4341.5,0.5417]
[1757105046822,1.71628334,4341.6,4341.5,1.1316]
[1757105052625,1.71628334,4341.6,4341.5,0.5417]
[1757105054936,1.33398334,4341.6,4341.5,1.5114]
[1757105055934,1.71628334,4341.6,4341.5,0.7616]
[1757105056324,1.71628334,4341.6,4341.5,1.1316]
[1757105059533,1.33398334,4341.6,4341.5,1.1316]
[1757105061527,1.69588334,4341.6,4341.5,0.5417]
[1757105062327,1.69588334,4341.6,4341.5,1.5297]
[1757105062328,1.20178334,4341.6,4341.5,1.5297]
[1757105062829,1.59078334,4341.6,4341.5,1.5297]
[1757105063427,1.95268334,4341.6,4341.5,1.5297]
[1757105064732,1.95268334,4341.6,4341.3,0.69791]
[1757105064934,1.1071,4341.4,4341.3,0.69791]
[1757105065134,1.91168334,4341.4,4341.3,1.08071]
[1757105065334,1.54978334,4341.4,4341.3,1.08071]
[1757105065934,1.54978334,4341.4,4341.3,1.46661]
[1757105067135,1.16078334,4341.4,4341.3,1.46661]
[1757105067338,0.80458334,4341.4,4341.3,1.46661]
[1757105073643,1.16078334,4341.4,4341.3,1.46661]
[1757105074137,0.92678334,4341.4,4341.3,1.46661]
[1757105074536,1.31578334,4341.4,4341.3,1.46661]
[1757105074836,1.31578334,4341.4,4341.3,1.08071]
[1757105075042,1.67298334,4341.4,4341.3,1.08071]
[1757105075343,1.31578334,4341.4,4341.3,1.46661]
[1757105076234,0.57058334,4341.4,4341.3,1.46661]
[1757105078844,0.92678334,4341.4,4341.3,1.46661]
[1757105079244,1.67298334,4341.4,4341.3,1.08071]
[1757105079545,1.67298334,4341.4,4341.3,0.69791]
[1757105079941,1.67298334,4341.4,4341.3,1.08071]
[1757105081144,1.31578334,4341.4,4341.3,1.08071]
[1757105081347,1.31578334,4341.4,4341.3,1.46661]
[1757105082549,1.16078334,4341.4,4341.3,1.46661]
[1757105082946,0.57058334,4341.4,4341.3,1.46661]
[1757105083747,0.234,4341.5,4341.3,1.46661]
[1757105083944,0.57136094,4341.4,4341.3,1.46661]
[1757105084953,0.92756094,4341.4,4341.3,1.46661]
[1757105085150,0.57136094,4341.4,4341.3,1.46661]
[1757105085849,0.92756094,4341.4,4341.3,1.46661]
[1757105086054,1.31656094,4341.4,4341.3,1.46661]
[1757105088252,0.57136094,4341.4,4341.3,1.46661]
[1757105088958,0.57136094,4341.4,4341.3,1.69695]
[1757105089155,3.2078,4341.7,4341.3,1.69695]
[1757105089358,3.2078,4341.7,4341.6,1.2807]
[1757105091961,3.5653,4341.7,4341.6,1.2807]
[1757105092156,4.1147,4341.7,4341.6,1.2807]
[1757105093261,0.9069,4341.7,4341.6,1.2807]
[1757105094161,1.2673,4341.7,4341.6,1.2807]
[1757105095449,0.3575,4341.7,4341.6,1.2807]
[1757105096159,0.9069,4341.7,4341.6,1.2807]
[1757105097663,1.2673,4341.7,4341.6,1.2807]
[1757105097959,4.4751,4341.7,4341.6,0.9286]
[1757105099058,4.4751,4341.7,4341.3,0.12211]
[1757105099360,4.4751,4341.7,4341.6,0.9286]
[1757105100863,4.4751,4341.7,4341.6,1.2807]
[1757105102763,1.2673,4341.7,4341.6,1.2807]
[1757105104563,5.0433105,4341.7,4341.6,0.9286]
[1757105104965,4.4751,4341.7,4341.6,0.9286]
[1757105106267,5.04332018,4341.7,4341.6,0.9286]
[1757105107271,5.04336457,4341.7,4341.6,0.9286]
[1757105108156,5.04336457,4341.7,4341.6,1.2807]
[1757105109964,4.4751,4341.7,4341.6,1.2807]
[1757105110164,5.04344494,4341.7,4341.6,1.2807]
[1757105110462,5.04344494,4341.7,4341.3,0.12211]
[1757105110463,1.2673,4341.4,4341.3,0.12211]
[1757105110657,2.06870809,4341.4,4341.3,0.12211]
[1757105112061,5.74964809,4341.4,4339.6,3.2078]
[1757105112364,0.3575,4339.1,4339.0,4.7051]
[1757105112564,0.7179,4339.8,4339.7,1.2807]
[1757105112770,1.28615595,4339.8,4339.7,1.2807]
[1757105112958,0.92575595,4339.8,4339.7,1.2807]
[1757105113160,0.233,4339.9,4339.7,1.2807]
[1757105113465,0.5905,4339.9,4339.8,1.2807]
[1757105113666,1.15823978,4339.9,4339.8,1.2807]
[1757105114263,0.9509,4339.9,4339.8,1.2807]
[1757105114466,2.0676778,4339.9,4339.8,1.2807]
[1757105114663,2.06768006,4339.9,4339.8,1.2807]
[1757105115069,5.27548006,4339.9,4339.8,1.2807]
[1757105115264,4.7081,4339.9,4339.8,1.2807]
[1757105116165,3.9257,4339.9,4339.8,1.2807]
[1757105117167,4.4751,4339.9,4339.8,1.2807]
[1757105118066,4.4751,4339.9,4339.8,0.9286]
[1757105118267,4.4751,4339.9,4339.6,0.5688]
[1757105118669,0.3616,4339.1,4339.0,3.8042]
[1757105118967,1.2785,4339.1,4339.0,0.9689]
[1757105119171,0.7204,4339.1,4339.0,0.9689]
[1757105119365,0.7204,4339.1,4339.0,1.5377]
[1757105119765,1.2785,4339.1,4339.0,1.5377]
[1757105120169,1.2785,4339.1,4338.5,0.2166]
[1757105120369,0.5581,4339.1,4338.5,0.9689]
[1757105120572,0.233,4339.1,4339.0,0.9651]
[1757105120772,0.233,4339.1,4339.0,1.5339]
[1757105122172,0.5946,4339.1,4339.0,1.5339]
[1757105122672,1.5115,4339.1,4339.0,1.5339]
[1757105122872,1.5115,4339.1,4338.5,0.2166]
[1757105123070,0.9197,4339.0,4338.9,0.3725]
[1757105123266,3.2078,4339.3,4338.9,1.3211]
[1757105123473,3.4408,4339.3,4339.2,1.3211]
[1757105123677,3.8024,4339.3,4339.2,1.3211]
[1757105123871,4.1612,4339.3,4339.2,1.3211]
[1757105124078,4.7193,4339.3,4339.2,1.3211]
[1757105125478,4.4863,4339.3,4339.2,1.3211]
[1757105125674,3.2078,4339.3,4339.2,1.3211]
[1757105126179,0.233,4339.6,4339.5,1.5339]
[1757105126474,3.5694,4339.8,4339.7,1.3211]
[1757105127474,0.3616,4339.8,4339.7,1.3211]
[1757105129083,1.2785,4339.8,4339.7,1.3211]
[1757105129279,0.7204,4339.3,4339.2,1.3211]
[1757105129481,1.2785,4339.3,4339.2,1.3211]
[1757105129783,0.7204,4338.8,4338.7,1.3211]
[1757105130178,3.4408,4339.3,4339.0,0.2128]
[1757105130380,0.7204,4339.5,4339.4,1.3211]
[1757105130575,0.3616,4339.5,4339.4,1.3211]
[1757105130774,0.3616,4339.5,4339.0,0.2128]
[1757105130775,0.233,4339.6,4339.5,1.5339]
[1757105131284,0.9534,4339.6,4339.0,0.2128]
[1757105131485,0.7204,4339.2,4339.1,0.7523]
[1757105131685,1.2785,4339.2,4339.1,0.7523]
[1757105131980,1.2785,4339.2,4339.1,1.3211]
[1757105132178,0.7204,4339.2,4339.1,1.3211]
[1757105133189,1.2785,4339.2,4339.1,1.3211]
[1757105133485,0.7204,4339.2,4338.9,0.5688]
[1757105133680,1.2785,4339.1,4339.0,0.9486]
[1757105134489,1.2785,4339.1,4339.0,1.5339]
[1757105139383,0.7204,4339.1,4339.0,1.5339]
[1757105139788,1.2785,4339.1,4339.0,0.9486]
[1757105140295,1.2785,4339.1,4339.0,1.5339]
[1757105140296,0.7204,4339.1,4339.0,1.5339]
[1757105142289,1.28880992,4339.1,4339.0,1.5339]
[1757105145196,0.56840992,4339.1,4339.0,1.5339]
[1757105148497,0.93000992,4339.1,4339.0,1.5339]
[1757105149800,0.56840992,4339.1,4339.0,1.5339]
[1757105150398,0.92420992,4339.1,4339.0,1.5339]
[1757105150701,1.79150992,4339.1,4339.0,1.5339]
[1757105151097,0.56840992,4339.1,4339.0,1.5339]
[1757105151407,1.79150992,4339.1,4339.0,1.5339]
[1757105152011,1.26970992,4339.1,4339.0,1.5339]
[1757105155520,1.79150992,4339.1,4339.0,1.5339]
[1757105155819,1.79150992,4339.1,4339.0,1.3211]
[1757105156418,1.79150992,4339.1,4339.0,1.5255]
[1757105157421,1.26970992,4339.1,4339.0,1.5255]
[1757105158321,1.79150992,4339.1,4339.0,1.5255]
[1757105158818,1.79150992,4339.1,4339.0,0.5688]
[1757105159317,0.7013,4338.9,4338.5,3.4244]
[1757105159619,1.2231,4338.7,4338.6,0.5202]
[1757105159816,1.79291507,4338.7,4338.6,0.5202]
[1757105160122,1.79291507,4338.7,4338.2,0.5202]
[1757105160321,0.7013,4338.7,4338.2,0.5202]
[1757105160521,0.5218,4338.6,4338.2,0.5202]
[1757105160721,0.8673,4338.5,4338.4,0.7271]
[1757105160925,1.2231,4338.5,4338.4,1.2473]
[1757105162417,1.2231,4338.5,4338.4,0.878]
[1757105162620,1.2231,4338.2,4338.1,0.878]
[1757105162814,1.2231,4338.2,4337.5,0.2128]
[1757105163126,4.4309,4337.9,4337.8,0.878]
[1757105163622,5.00038323,4337.9,4337.8,0.878]
[1757105164322,3.77728323,4337.9,4337.0,0.9315]
[1757105164525,2.02558323,4337.8,4337.7,0.7271]
[1757105165032,2.02558323,4337.8,4337.7,1.2473]
[1757105165224,1.50378323,4337.8,4337.7,1.2473]
[1757105165617,1.79258323,4337.8,4337.7,1.2473]
[1757105167524,3.4408,4337.9,4337.7,0.7271]
[1757105167732,3.4408,4337.9,4337.8,1.2473]
[1757105168230,3.2078,4337.9,4337.8,1.2473]
[1757105169427,3.2078,4338.4,4338.0,0.2044]
[1757105169634,3.5636,4338.4,4338.3,1.2473]
[1757105170731,3.2078,4338.9,4338.5,0.2044]
[1757105170929,0.93260511,4338.8,4338.7,1.2473]
[1757105171635,0.3558,4338.8,4338.7,1.2473]
[1757105173828,5.45358001,4338.8,4338.1,0.5202]
[1757105174136,0.7013,4338.2,4338.1,1.2473]
[1757105174633,0.233,4338.5,4338.2,0.5202]
[1757105174828,0.9343,4338.5,4338.4,1.2473]
[1757105175235,1.4561,4338.5,4338.4,1.2473]
[1757105175528,4.6639,4338.5,4338.0,0.2044]
[1757105175732,4.8457,4338.5,4338.1,0.5202]
[1757105175930,4.8457,4338.5,4337.7,3.2078]
[1757105176136,0.7013,4337.9,4337.8,1.2473]
[1757105177931,0.5218,4337.8,4337.7,3.2078]
[1757105178237,1.2231,4337.8,4337.7,3.2078]
[1757105178433,1.2231,4337.8,4337.7,3.7523]
[1757105178638,1.2231,4337.8,4337.7,3.2078]
[1757105178935,0.8895,4337.4,4337.3,1.2227]
[1757105179129,1.2266,4337.4,4337.3,1.2227]
[1757105179629,1.2266,4337.4,4337.3,0.8823]
[1757105180337,4.4344,4337.4,4337.1,0.5445]
[1757105180730,0.5445,4337.3,4337.1,0.5445]
[1757105180937,1.2266,4337.1,4337.0,1.4271]
[1757105181531,1.2266,4337.1,4337.0,1.2227]
[1757105182332,1.2266,4337.1,4337.0,0.5445]
[1757105182533,1.2266,4337.1,4337.0,0.8823]
[1757105182936,1.2266,4337.1,4337.0,1.2227]
[1757105183240,1.2266,4337.1,4337.0,1.4198]
[1757105183437,0.6821,4337.1,4337.0,1.4198]
[1757105185538,1.2266,4337.1,4337.0,1.4198]
[1757105186143,1.2266,4337.1,4337.0,1.2227]
[1757105186342,1.2266,4337.1,4337.0,0.8823]
[1757105187140,1.2266,4337.1,4337.0,1.2227]
[1757105187944,0.6821,4337.1,4337.0,1.4198]
[1757105188141,0.3371,4337.1,4337.0,1.4198]
[1757105188444,3.9853,4337.4,4337.1,0.5445]
[1757105188646,4.6674,4337.4,4337.3,1.2227]
[1757105190846,4.6674,4337.4,4337.3,0.8823]
[1757105191356,5.24851753,4337.4,4337.3,0.8823]
[1757105192042,5.01551753,4337.4,4337.3,1.2227]
[1757105192357,5.24859709,4337.4,4337.3,1.2227]
[1757105193054,5.01559709,4337.4,4337.3,1.2227]
[1757105193553,5.01559709,4337.4,4337.3,0.8823]
[1757105193758,5.01559709,4337.4,4337.3,0.5445]
[1757105194053,5.01559709,4337.4,4337.3,0.8823]
[1757105194651,5.24859709,4337.4,4337.3,1.2227]
[1757105195752,5.01559709,4337.4,4337.3,1.2227]
[1757105196247,5.01559709,4337.4,4337.3,0.8823]
[1757105196949,5.01559709,4337.4,4337.3,0.5445]
[1757105198246,5.01559709,4337.4,4337.3,0.8823]
[1757105198450,4.4344,4337.4,4337.3,0.8823]
[1757105199153,0.6821,4336.8,4336.7,0.8823]
[1757105199355,1.2266,4336.8,4336.7,0.8823]
[1757105199551,1.2266,4336.8,4336.7,1.2227]
[1757105201759,0.5445,4336.7,4336.6,3.2078]
[1757105201961,0.6821,4336.7,4336.6,0.3378]
[1757105202352,0.6821,4336.7,4336.6,0.8823]
[1757105202554,1.2266,4336.7,4336.6,0.8823]
[1757105203459,0.3371,4336.3,4336.2,1.2227]
[1757105204151,0.3371,4336.8,4336.7,1.2227]
[1757105206353,0.91940163,4336.8,4336.7,1.2227]
[1757105209656,0.58230163,4336.8,4336.7,1.2227]
[1757105212965,3.2078,4337.3,4336.7,5.45329]
[1757105213167,0.58348731,4337.2,4337.1,1.2396]
[1757105213368,0.93578731,4337.2,4337.1,1.2396]
[1757105213569,1.81768731,4337.2,4337.1,1.2396]
[1757105217768,1.27778731,4337.2,4337.1,1.2396]
[1757105218673,1.81768731,4337.2,4337.1,1.2396]
[1757105219869,1.81768731,4337.2,4337.1,0.8829]
[1757105222583,1.81768731,4337.2,4337.1,1.2396]
[1757105223877,1.27778731,4337.2,4337.1,1.2396]
[1757105224078,0.93578731,4337.2,4337.1,1.2396]
[1757105224280,1.27778731,4337.2,4337.1,1.2396]
[1757105224585,1.81768731,4337.2,4337.1,1.2396]
[1757105224881,0.3523,4336.8,4336.7,0.8829]
[1757105225186,1.2342,4336.8,4336.7,1.2396]
[1757105225382,0.6943,4336.8,4336.7,1.2396]
[1757105225686,0.3523,4337.1,4337.0,1.4358]
[1757105226086,0.93607431,4337.1,4337.0,1.4358]
[1757105226785,1.81797431,4337.1,4337.0,1.4358]
[1757105227183,1.81797431,4337.1,4337.0,1.2396]
[1757105227687,1.81797431,4337.1,4337.0,1.4358]
[1757105229488,1.81797431,4337.1,4337.0,1.2396]
[1757105230788,0.1818,4337.0,4336.7,0.3593]
[1757105230994,1.81797431,4336.9,4336.8,0.5236]
[1757105231286,1.81797431,4336.9,4336.5,0.1971]
[1757105231494,1.2342,4336.6,4336.5,0.5564]
[1757105231993,1.2342,4336.6,4336.5,1.08]
[1757105232388,1.2342,4336.6,4336.5,1.4367]
[1757105236498,1.2342,4336.6,4336.5,1.2396]
[1757105236696,0.1818,4336.5,4336.2,0.5236]
[1757105236896,1.2342,4336.3,4336.2,0.5236]
[1757105237090,0.5399,4336.2,4336.1,3.2078]
[1757105237289,1.81808603,4336.2,4335.7,0.5236]
[1757105237494,0.3523,4336.2,4336.1,1.2396]
[1757105237696,0.58465313,4336.4,4336.1,0.716]
[1757105237889,3.4408,4336.8,4336.6,0.5236]
[1757105238094,3.2078,4336.8,4336.7,1.2396]
[1757105238291,0.58459737,4336.8,4336.7,1.2396]
[1757105238602,2.07698786,4337.9,4337.8,1.176]
[1757105238792,4.44828786,4338.0,4337.8,1.176]
[1757105239099,3.2078,4338.0,4337.9,1.176]
[1757105239494,0.8757,4338.5,4338.4,0.676]
[1757105239694,0.6939,4338.5,4338.4,1.176]
[1757105240089,1.194,4338.5,4338.4,1.176]
[1757105241298,1.3969,4338.5,4338.4,0.676]
[1757105241695,0.8968,4338.0,4337.9,0.5653]
[1757105241889,1.3969,4338.0,4337.9,0.5653]
[1757105242197,1.3969,4338.5,4338.4,1.176]
[1757105242997,1.3969,4338.5,4338.4,0.676]
[1757105244201,1.3969,4338.5,4337.9,0.233]
[1757105244406,1.3969,4338.0,4337.9,0.5653]
[1757105245193,1.3969,4338.0,4337.9,0.3323]
[1757105245708,4.6047,4338.0,4337.9,0.3323]
[1757105246904,0.5001,4337.9,4337.5,0.733]
[1757105247104,1.194,4337.6,4337.5,1.409]
[1757105248109,0.8365,4337.6,4337.5,1.6182]
[1757105250105,1.194,4337.6,4337.5,0.909]
[1757105250409,1.194,4337.4,4336.9,0.5]
[1757105250607,1.3969,4337.0,4336.9,0.3323]
[1757105251799,0.8968,4337.0,4336.8,3.2078]
[1757105252004,1.194,4336.9,4336.8,3.2078]
[1757105252400,1.427,4336.9,4336.8,3.2078]
[1757105255912,1.427,4336.9,4336.2,0.5]
[1757105256407,1.194,4336.9,4336.8,1.176]
[1757105257015,3.2078,4337.4,4336.8,1.176]
[1757105257210,0.3364,4337.0,4336.5,0.4422]
[1757105257411,0.8365,4337.0,4336.9,1.176]
[1757105257613,1.194,4337.0,4336.9,1.176]
[1757105259520,1.3969,4337.0,4336.9,1.176]
[1757105259816,1.3969,4337.0,4336.9,0.676]
[1757105260411,1.3969,4337.0,4336.9,1.176]
[1757105262323,0.6939,4336.6,4336.5,1.0653]
[1757105262527,0.703,4336.5,4336.1,0.5]
[1757105262821,0.703,4336.5,4336.0,3.2078]
[1757105262822,1.194,4336.1,4336.0,0.3323]
[1757105263214,1.194,4336.1,4336.0,0.8323]
[1757105263720,1.194,4336.1,4336.0,1.176]
[1757105266019,1.194,4336.1,4336.0,0.3323]
[1757105266432,1.194,4336.1,4335.6,0.5]
[1757105266723,0.6939,4335.7,4335.2,0.733]
[1757105266918,0.6939,4335.0,4334.9,1.176]
[1757105267118,1.194,4335.0,4334.9,1.176]
[1757105267320,1.3969,4335.0,4334.9,1.176]
[1757105267820,1.194,4335.0,4334.9,1.176]
[1757105270630,0.513,4334.9,4334.0,0.1978]
[1757105270828,0.513,4334.7,4334.1,0.5108]
[1757105271422,0.3236,4334.2,4334.1,1.1919]
[1757105271731,0.513,4334.7,4334.1,0.6811]
[1757105271928,1.1887,4334.7,4334.6,0.335]
[1757105273521,1.1887,4334.7,4334.1,0.5108]
[1757105275525,1.1887,4334.7,4334.6,0.6811]
[1757105275730,1.4217,4334.7,4334.6,1.1919]
[1757105276731,1.4217,4334.7,4334.6,0.335]
[1757105276928,1.4217,4334.7,4334.3,0.5108]
[1757105277132,0.7097,4334.5,4334.4,0.335]
[1757105277334,1.3854,4334.5,4334.4,0.8458]
[1757105277729,0.8366,4334.7,4334.6,1.1919]
[1757105278331,1.1887,4334.7,4334.6,1.1919]
[1757105283434,1.1887,4334.7,4334.6,0.6811]
[1757105283732,0.8366,4334.7,4334.6,1.1919]
[1757105285737,1.1887,4334.7,4334.6,1.1919]
[1757105285932,1.1887,4334.7,4334.6,0.6811]
[1757105286137,1.1887,4334.7,4334.6,0.335]
[1757105286337,1.1887,4334.7,4334.1,0.5108]
[1757105286538,0.6757,4334.7,4334.6,0.335]
[1757105286934,1.1887,4334.7,4334.6,0.335]
[1757105287335,1.1887,4334.7,4334.6,1.1919]
[1757105289746,1.1887,4334.7,4334.6,0.335]
[1757105290655,1.1887,4334.7,4334.6,0.8458]
[1757105291154,1.1887,4334.7,4334.6,0.335]
[1757105291554,1.1887,4334.7,4334.6,0.8458]
[1757105292352,1.1887,4334.7,4334.6,1.1919]
[1757105292353,1.76989822,4334.7,4334.6,1.1919]
[1757105293555,1.76989822,4334.7,4334.0,0.1978]
[1757105293858,0.6757,4334.2,4334.1,0.91181999]
[1757105294050,1.1887,4334.2,4334.1,1.1919]
[1757105297361,1.77086999,4334.2,4334.1,1.1919]
[1757105299060,1.41876999,4334.2,4334.1,1.1919]
[1757105301254,0.58216999,4334.2,4334.1,1.1919]
[1757105301558,0.4884,4334.5,4334.2,0.4813]
[1757105301761,0.4884,4334.5,4334.4,1.1458]
[1757105301962,1.0730295,4334.5,4334.4,1.1458]
[1757105302366,1.9554295,4334.5,4334.1,0.4813]
[1757105302658,1.1731,4334.3,4334.2,1.1458]
[1757105302963,1.7577295,4334.3,4334.2,1.1458]
[1757105305255,0.9229295,4334.3,4334.2,1.1458]
[1757105305563,1.4113295,4334.3,4334.2,1.1458]
[1757105305862,0.5846295,4334.3,4334.2,1.1458]
[1757105306756,0.4884,4334.7,4334.3,0.4813]
[1757105307065,1.41121848,4334.6,4334.5,0.6645]
[1757105307358,1.75761848,4334.6,4334.5,1.1458]
[1757105309461,1.41121848,4334.6,4334.5,1.1458]
[1757105310064,1.75761848,4334.6,4334.5,1.1458]
[1757105311460,1.41121848,4334.6,4334.5,1.1458]
[1757105314171,0.58451848,4334.6,4334.5,1.5773]
[1757105314368,0.4884,4335.3,4334.6,0.4813]
[1757105314576,1.75784805,4335.2,4335.1,0.3233]
[1757105320274,1.75784805,4335.2,4335.1,1.1458]
[1757105321275,1.1731,4335.2,4335.1,1.1458]
[1757105322676,0.8267,4335.4,4335.3,0.6645]
[1757105322876,1.41062505,4335.4,4335.3,1.1458]
[1757105324275,0.8267,4335.4,4335.3,1.1458]
[1757105324876,1.1731,4335.4,4335.3,1.1458]
[1757105326573,0.4884,4335.6,4335.3,0.6645]
[1757105326768,0.2029,4336.0,4335.4,1.3788]
[1757105326769,0.8267,4335.5,4335.4,1.3788]
[1757105326974,1.1731,4335.5,4335.4,1.3788]
[1757105329673,0.4853,4335.4,4334.6,0.46]
[1757105329878,1.1293,4334.7,4334.6,1.1065]
[1757105330081,1.1293,4334.7,4334.6,1.3395]
[1757105331282,0.644,4334.7,4334.5,3.2078]
[1757105331486,1.1293,4334.1,4334.0,1.1065]
[1757105331686,1.1293,4334.1,4334.0,1.3395]
[1757105333787,0.187,4334.5,4334.0,1.5237]
[1757105334082,1.3163,4334.5,4334.4,0.6465]
[1757105334283,1.3163,4334.5,4334.4,0.559]
[1757105335582,1.3163,4334.5,4334.4,1.019]
[1757105336986,1.3163,4334.5,4334.4,0.559]
[1757105337286,1.3163,4334.5,4334.4,0.233]
[1757105340293,1.3163,4334.5,4334.4,0.559]
[1757105341494,1.3163,4334.5,4334.4,0.233]
[1757105343093,1.3163,4334.5,4334.4,0.559]
[1757105344096,1.3163,4334.5,4334.4,0.233]
[1757105345986,1.3163,4334.5,4334.4,1.019]
[1757105346894,1.3163,4334.5,4334.4,1.3395]
[1757105347090,1.1293,4334.5,4334.4,1.3395]
[1757105347491,0.4853,4334.9,4334.4,0.8795]
[1757105347697,0.8018,4334.6,4334.5,1.1065]
[1757105348099,0.4853,4334.9,4334.5,0.8307]
[1757105348400,1.3163,4335.0,4334.9,1.1065]
[1757105348595,1.89981598,4335.0,4334.9,1.1065]
[1757105350502,1.1293,4335.0,4334.9,1.1065]
[1757105351307,0.8018,4335.0,4334.9,1.1065]
[1757105352706,0.99588032,4335.0,4334.9,1.1065]
[1757105353410,1.32338032,4335.0,4334.9,1.1065]
[1757105354908,0.19408032,4335.0,4334.9,1.1065]
[1757105355108,3.6931,4336.0,4335.7,0.6465]
[1757105355312,1.38525528,4335.9,4335.8,1.3395]
[1757105355708,0.8018,4335.9,4335.8,1.3395]
[1757105355903,3.2078,4336.0,4335.9,0.46]
[1757105356108,4.0096,4336.0,4335.9,1.1065]
[1757105356406,3.2078,4336.7,4335.9,1.1065]
[1757105356606,0.8018,4336.3,4336.2,0.6465]
[1757105356807,0.8018,4336.3,4336.2,1.3395]
[1757105358716,1.0905,4336.9,4336.8,0.3181]
[1757105358918,1.67832765,4336.9,4336.8,0.3181]
[1757105359109,1.0905,4336.9,4336.8,0.3181]
[1757105359413,1.0905,4336.9,4336.6,0.4578]
[1757105359808,1.0905,4336.9,4336.5,0.233]
[1757105360004,0.6343,4336.9,4336.5,0.6908]
[1757105360210,0.6343,4336.6,4336.5,1.0089]
[1757105360415,1.0905,4336.6,4336.5,1.3172]
[1757105361814,1.0905,4336.6,4336.5,0.8594]
[1757105362215,1.0905,4336.6,4336.5,1.3172]
[1757105363213,0.4562,4336.9,4336.5,1.0525]
[1757105363414,0.768,4336.9,4336.8,1.0842]
[1757105363615,1.0905,4336.9,4336.8,1.0842]
[1757105373724,0.4562,4337.4,4336.9,0.4578]
[1757105373922,0.768,4337.4,4337.3,0.6264]
[1757105374119,0.768,4337.4,4337.3,1.3172]
[1757105374317,1.0905,4337.4,4337.3,1.3172]
[1757105376829,1.0905,4337.4,4337.3,0.233]
[1757105379018,0.6343,4336.8,4336.7,3.2078]
[1757105379224,1.0905,4336.8,4336.7,3.4408]
[1757105379728,1.0905,4336.8,4336.7,3.7589]
[1757105379929,1.0905,4336.8,4336.7,3.4408]
[1757105382327,1.0905,4336.8,4336.7,3.7589]
[1757105382628,1.0905,4336.8,4336.7,4.82460857]
[1757105391242,1.0905,4336.8,4336.7,4.525]
[1757105391635,3.2078,4337.4,4336.7,4.525]
[1757105391841,1.94225655,4337.3,4337.2,0.3248]
[1757105392234,1.71168655,4337.3,4337.2,0.3248]
[1757105395137,1.39538655,4337.3,4337.2,1.1032]
[1757105396942,0.58898655,4337.3,4337.2,1.1032]
[1757105397246,0.58898655,4337.3,4337.2,4.544]
[1757105397838,1.71168655,4337.3,4337.2,4.544]
[1757105398039,1.71168655,4337.3,4337.2,0.8674]
[1757105398247,1.71168655,4337.3,4337.2,0.5578]
[1757105398435,1.71168655,4337.3,4337.2,1.0266]
[1757105398637,1.71168655,4337.3,4337.2,1.3362]
[1757105398838,3.2078,4337.9,4337.2,0.8674]
[1757105399036,0.3224,4337.3,4337.2,0.8674]
[1757105399247,0.8064,4337.3,4337.2,0.8674]
[1757105399547,0.8064,4337.3,4337.2,1.3362]
[1757105400652,1.1227,4337.3,4337.2,1.3362]
[1757105401447,3.2078,4337.9,4337.3,0.4688]
[1757105401645,4.0142,4337.9,4337.8,1.1032]
[1757105401845,4.60312553,4337.9,4337.8,1.1032]
[1757105402848,4.91942553,4337.9,4337.8,1.1032]
[1757105403041,1.71162553,4337.9,4337.8,1.1032]
[1757105403447,1.1227,4337.9,4337.8,1.1032]
[1757105404051,1.71145026,4337.9,4337.8,1.1032]
[1757105404357,1.1227,4337.9,4337.8,1.1032]
[1757105405449,1.71126364,4337.9,4337.6,0.233]
[1757105405650,1.1227,4337.9,4337.6,0.233]
[1757105405853,0.58859573,4337.8,4337.6,0.233]
[1757105406056,1.1227,4337.7,4337.6,0.233]
[1757105406356,1.1227,4337.7,4337.2,3.2078]
[1757105406545,1.1227,4337.3,4337.2,3.2078]
[1757105408061,1.71133933,4337.3,4337.2,3.2078]
[1757105408454,1.71133933,4337.3,4337.2,3.5326]
[1757105408654,1.71133933,4337.3,4337.2,3.8422]
[1757105408857,1.71133933,4337.3,4337.2,4.311]
[1757105409053,3.3948,4338.0,4337.3,0.4688]